fUSD/lending_fUSD_20260507
["ID","MTS","AMOUNT","RATE_DAILY","PERIOD"]
[421763371,1778119838000,-9999.99,0.00012,2]
[421763374,1778119838000,-250.0,0.000121,2]
[421763432,1778119838000,-166.66,0.00013699,2]
[421763386,1778119838000,-150.0,0.00012575,2]
[421763377,1778119838000,-300.0,0.000121,2]
[421763378,1778119838000,-4000.0,0.000123,2]
[421763375,1778119838000,-500.0,0.000121,2]
[421763379,1778119838000,-200.0,0.0001234,2]
[421763381,1778119838000,-4970.07523918,0.00012475,2]
[421763382,1778119838000,-150.0,0.00012575,2]
[421763380,1778119838000,-3386.75533438,0.00012475,2]
[421763383,1778119838000,-150.0,0.00012575,2]
[421763384,1778119838000,-150.0,0.00012575,2]
[421763385,1778119838000,-150.0,0.00012575,2]
[421763387,1778119838000,-150.0,0.00012575,2]
[421763390,1778119838000,-305.92,0.00012632,2]
[421763391,1778119838000,-3386.7553343,0.00012744,2]
[421763388,1778119838000,-2000.0,0.00012602,2]
[421763398,1778119838000,-316.88820569,0.00012973,2]
[421763393,1778119838000,-150.0,0.00012808,2]
[421763395,1778119838000,-488.9637319,0.00012873,2]
[421763396,1778119838000,-4000.0,0.00012915,2]
[421763399,1778119838000,-14332.12594323,0.00013009,2]
[421763389,1778119838000,-4000.0,0.00012608,2]
[421763394,1778119838000,-4970.07523911,0.00012821,2]
[421763430,1778119838000,-150.0,0.00013623,2]
[421763376,1778119838000,-250.0,0.000121,2]
[421763441,1778119838000,-1000.0,0.00013748,2]
[421763508,1778119838000,-500.0,0.00013986,2]
[421763509,1778119838000,-500.0,0.00013986,2]
[421763499,1778119838000,-166.66,0.00013973,2]
[421763512,1778119838000,-500.0,0.00013986,2]
[421763510,1778119838000,-526.18836347,0.00013986,2]
[421763501,1778119838000,-500.0,0.00013986,2]
[421763496,1778119838000,-150.0,0.00013973,2]
[421763503,1778119838000,-500.0,0.00013986,2]
[421763514,1778119838000,-500.0,0.00013986,2]
[421763515,1778119838000,-500.0,0.00013986,2]
[421763517,1778119838000,-208.6162126,0.00013987,2]
[421763527,1778119838000,-12014.61704422,0.0001399,2]
[421763524,1778119838000,-697009.736651,0.00013987,2]
[421763507,1778119838000,-500.0,0.00013986,2]
[421763526,1778119838000,-7916.0745371,0.00013987,2]
[421763531,1778119838000,-608.0,0.00013996,2]
[421763519,1778119838000,-4617.1907908,0.00013987,2]
[421763521,1778119838000,-23696.8170381,0.00013987,2]
[421763523,1778119838000,-151.0,0.00013987,2]
[421763533,1778119838000,-608.0,0.00013996,2]
[421763536,1778119838000,-608.0,0.00013996,2]
[421763534,1778119838000,-608.0,0.00013996,2]
[421763545,1778119838000,-608.0,0.00013996,2]
[421763547,1778119838000,-150.0,0.00013996,2]
[421763538,1778119838000,-500.0,0.00013996,2]
[421763541,1778119838000,-150.0,0.00013996,2]
[421763539,1778119838000,-608.0,0.00013996,2]
[421763435,1778119838000,-14332.12594323,0.00013718,2]
[421763529,1778119838000,-608.0,0.00013996,2]
[421763505,1778119838000,-309.013254,0.00013986,2]
[421763543,1778119838000,-500.0,0.00013996,2]
[421763492,1778119838000,-150.0,0.00013973,2]
[421763438,1778119838000,-1000.0,0.00013748,2]
[421763434,1778119838000,-250.0,0.00013718,2]
[421763437,1778119838000,-150.0,0.0001374,2]
[421763433,1778119838000,-1000.0,0.00013699,2]
[421763436,1778119838000,-500.0,0.00013732,2]
[421763453,1778119838000,-47517.53808494,0.0001385,2]
[421763443,1778119838000,-503.11139705,0.00013748,2]
[421763445,1778119838000,-502.24165791,0.00013748,2]
[421763494,1778119838000,-156.35890724,0.00013973,2]
[421763460,1778119838000,-98975.9055,0.00013885,2]
[421763458,1778119838000,-500.0,0.00013873,2]
[421763447,1778119838000,-721.9336,0.00013787,2]
[421763451,1778119838000,-166.66,0.00013836,2]
[421763449,1778119838000,-3386.7553343,0.00013822,2]
[421763455,1778119838000,-4970.07523911,0.00013861,2]
[421763465,1778119838000,-33139.5584,0.00013887,2]
[421763488,1778119838000,-150.0,0.00013973,2]
[421763463,1778119838000,-488.96373188,0.00013887,2]
[421763490,1778119838000,-150.00000001,0.00013973,2]
[421763486,1778119838000,-351.55653234,0.00013973,2]
[421763482,1778119838000,-150.0,0.00013968,2]
[421763476,1778119838000,-1200.0,0.000139,5]
[421763480,1778119838000,-14332.12594323,0.00013955,2]
[421763478,1778119838000,-6244.25,0.00013945,2]
[421763474,1778119838000,-166.68,0.00013888,2]
[421763471,1778119838000,-1064.07331146,0.00013887,2]
[421763469,1778119838000,-467.43426067,0.00013887,2]
[421763467,1778119838000,-2000.0,0.00013887,2]
[421763484,1778119838000,-214.67231335,0.00013968,2]
[421763595,1778119839000,-433.0,0.00014254,2]
[421763593,1778119839000,-305.92,0.00014211,2]
[421763597,1778119839000,-1500.0,0.00014296,2]
[421763590,1778119839000,-2000.0,0.00014177,2]
[421763594,1778119839000,-166.66,0.00014247,2]
[421763589,1778119839000,-689.740767,0.00014139,2]
[421763599,1778119839000,-3386.7553343,0.00014361,2]
[421763600,1778119839000,-166.66,0.00014384,2]
[421763588,1778119839000,-222.207789,0.00014139,2]
[421763598,1778119839000,-1500.0,0.00014296,2]
[421763592,1778119839000,-4970.07523911,0.00014207,2]
[421763596,1778119839000,-1500.0,0.00014296,2]
[421763611,1778119839000,-355.059271,0.000147,2]
[421763601,1778119839000,-10440.09389244,0.0001439,2]
[421763602,1778119839000,-502.50768999,0.00014421,2]
[421763604,1778119839000,-248.0,0.00014459,2]
[421763607,1778119839000,-4970.07523911,0.00014554,2]
[421763603,1778119839000,-14332.12594323,0.00014427,2]
[421763608,1778119839000,-500.0,0.00014587,2]
[421763605,1778119839000,-5016.16587604,0.00014485,2]
[421763606,1778119839000,-2351.0,0.00014519,2]
[421763609,1778119839000,-3386.7553343,0.00014631,2]
[421763613,1778119839000,-200.0,0.000148,5]
[421763610,1778119839000,-14332.12594323,0.00014664,2]
[421763612,1778119839000,-322.298425,0.000147,2]
[421763582,1778119839000,-250.0,0.00014,2]
[421763591,1778119839000,-14332.12594323,0.00014191,2]
[421763586,1778119839000,-3386.7553343,0.00014092,2]
[421763573,1778119839000,-608.0,0.00013996,2]
[421763578,1778119839000,-608.0,0.00013996,2]
[421763614,1778119839000,-185.54,0.00014821,2]
[421763550,1778119839000,-608.0,0.00013996,2]
[421763548,1778119839000,-500.0,0.00013996,2]
[421763552,1778119839000,-150.0,0.00013996,2]
[421763554,1778119839000,-500.0,0.00013996,2]
[421763555,1778119839000,-273.6731824,0.00013996,2]
[421763557,1778119839000,-500.0,0.00013996,2]
[421763559,1778119839000,-608.0,0.00013996,2]
[421763561,1778119839000,-468.17760146,0.00013996,2]
[421763565,1778119839000,-608.0,0.00013996,2]
[421763563,1778119839000,-608.0,0.00013996,2]
[421763575,1778119839000,-608.0,0.00013996,2]
[421763572,1778119839000,-608.0,0.00013996,2]
[421763571,1778119839000,-608.0,0.00013996,2]
[421763569,1778119839000,-247.96584717,0.00013996,2]
[421763567,1778119839000,-150.0,0.00013996,2]
[421763570,1778119839000,-608.0,0.00013996,2]
[421763574,1778119839000,-608.0,0.00013996,2]
[421763568,1778119839000,-608.0,0.00013996,2]
[421763587,1778119839000,-166.66,0.0001411,2]
[421763577,1778119839000,-608.0,0.00013996,2]
[421763585,1778119839000,-185.54,0.00014086,2]
[421763580,1778119839000,-608.0,0.00013996,2]
[421763581,1778119839000,-610.27538277,0.00013996,2]
[421763584,1778119839000,-506.0086978,0.00014,2]
[421763583,1778119839000,-8956.08444381,0.00014,2]
[421763579,1778119839000,-608.0,0.00013996,2]
[421763576,1778119839000,-608.0,0.00013996,2]
[421763617,1778119839000,-983.7392912,0.00014844,2]
[421763621,1778119839000,-3386.7553343,0.000149,2]
[421763624,1778119839000,-203.55,0.00014941,2]
[421763647,1778119839000,-416.0,0.00015262,2]
[421763651,1778119839000,-416.0,0.00015363,2]
[421763652,1778119839000,-200.0,0.00015379,2]
[421763650,1778119839000,-416.0,0.00015349,2]
[421763656,1778119839000,-185.54,0.00015556,2]
[421763657,1778119839000,-250.0,0.00015616,2]
[421763660,1778119839000,-788.64,0.00015756,2]
[421763653,1778119839000,-1813.94691139,0.00015392,2]
[421763654,1778119839000,-4480.19487187,0.00015463,2]
[421763661,1778119839000,-305.92,0.0001579,2]
[421763655,1778119839000,-736.0,0.00015537,2]
[421763658,1778119839000,-212.29,0.00015645,2]
[421763659,1778119839000,-2000.0,0.00015752,2]
[421763662,1778119839000,-395.51022397,0.0001596,2]
[421763664,1778119839000,-1133.41533641,0.00015993,2]
[421763663,1778119839000,-3292.0,0.00015971,2]
[421763666,1778119839000,-1133.41533641,0.00016013,2]
[421763665,1778119839000,-300.0,0.00016,2]
[421763667,1778119839000,-788.64,0.0001603,2]
[421763668,1778119839000,-9999.99,0.00016116,2]
[421763669,1778119839000,-11046.55,0.00016116,2]
[421763670,1778119839000,-350.0,0.00016164,2]
[421763671,1778119839000,-1133.41533641,0.00016165,2]
[421763673,1778119839000,-1133.41533641,0.00016223,2]
[421763618,1778119839000,-488.96373188,0.000149,2]
[421763674,1778119839000,-1133.41533641,0.00016267,2]
[421763675,1778119839000,-1133.41533641,0.00016288,2]
[421763644,1778119839000,-2500.0,0.0001523,2]
[421763645,1778119839000,-416.0,0.00015236,2]
[421763672,1778119839000,-1133.41533641,0.00016211,2]
[421763646,1778119839000,-416.0,0.00015243,2]
[421763648,1778119839000,-298.0,0.00015288,2]
[421763616,1778119839000,-506.48136939,0.00014844,2]
[421763625,1778119839000,-150.00000001,0.00014986,2]
[421763623,1778119839000,-674.385412,0.00014925,2]
[421763615,1778119839000,-2000.0,0.00014844,2]
[421763626,1778119839000,-64210.11156331,0.00014989,2]
[421763622,1778119839000,-4970.07523911,0.000149,2]
[421763619,1778119839000,-200.0,0.000149,5]
[421763627,1778119839000,-300.0,0.00014999,2]
[421763628,1778119839000,-671.85656189,0.00014999,2]
[421763629,1778119839000,-300.0,0.00014999,2]
[421763632,1778119839000,-7354845.43823937,0.00015,2]
[421763635,1778119839000,-150.0,0.00015068,2]
[421763620,1778119839000,-14332.12594323,0.000149,2]
[421763634,1778119839000,-359.08,0.00015068,2]
[421763641,1778119839000,-420.98761371,0.00015181,2]
[421763630,1778119839000,-300.0,0.00014999,2]
[421763642,1778119839000,-416.0,0.00015204,2]
[421763649,1778119839000,-416.0,0.00015319,2]
[421763639,1778119839000,-477.0,0.00015159,2]
[421763643,1778119839000,-416.0,0.00015212,2]
[421763640,1778119839000,-477.0,0.00015165,2]
[421763637,1778119839000,-477.0,0.00015117,2]
[421763636,1778119839000,-477.0,0.00015077,2]
[421763633,1778119839000,-4945.91101569,0.00015,2]
[421763631,1778119839000,-309.34908217,0.00014999,2]
[421763638,1778119839000,-416.0,0.00015119,2]
[421763713,1778119840000,-1133.41533641,0.00016678,2]
[421763714,1778119840000,-213.77,0.000167,2]
[421763710,1778119840000,-489.19,0.00016578,2]
[421763711,1778119840000,-1133.41533641,0.00016653,2]
[421763705,1778119840000,-501.41004535,0.00016438,2]
[421763706,1778119840000,-195.96062501,0.00016438,2]
[421763709,1778119840000,-13038.96565798,0.000165,2]
[421763712,1778119840000,-150.0,0.0001666,2]
[421763707,1778119840000,-500.0,0.00016438,2]
[421763708,1778119840000,-4439.4895439,0.000165,2]
[421763715,1778119840000,-187.52,0.00016712,2]
[421763728,1778119840000,-1010.77497534,0.00016986,2]
[421763716,1778119840000,-450.0,0.00016712,2]
[421763718,1778119840000,-169.76,0.00016866,2]
[421763717,1778119840000,-1133.41533641,0.00016737,2]
[421763719,1778119840000,-424.0,0.00016941,2]
[421763722,1778119840000,-175.98961266,0.00016986,2]
[421763721,1778119840000,-508.54186299,0.00016986,2]
[421763720,1778119840000,-1005.73709075,0.00016986,2]
[421763724,1778119840000,-508.22050108,0.00016986,2]
[421763723,1778119840000,-503.80512866,0.00016986,2]
[421763727,1778119840000,-1136.51073093,0.00016986,2]
[421763729,1778119840000,-1001.21068364,0.00016986,2]
[421763703,1778119840000,-500.0,0.00016438,2]
[421763725,1778119840000,-504.73489469,0.00016986,2]
[421763704,1778119840000,-500.35777432,0.00016438,2]
[421763686,1778119840000,-501.19146193,0.00016438,2]
[421763701,1778119840000,-500.19971275,0.00016438,2]
[421763731,1778119840000,-1002.39746425,0.00016986,2]
[421763678,1778119840000,-162.76,0.00016318,2]
[421763677,1778119840000,-788.64,0.00016304,2]
[421763679,1778119840000,-359.08,0.00016438,2]
[421763676,1778119840000,-1133.41533641,0.00016295,2]
[421763680,1778119840000,-258.99037695,0.00016438,2]
[421763681,1778119840000,-162.61700183,0.00016438,2]
[421763682,1778119840000,-501.66572695,0.00016438,2]
[421763685,1778119840000,-501.26582243,0.00016438,2]
[421763684,1778119840000,-529.69266044,0.00016438,2]
[421763683,1778119840000,-501.47026417,0.00016438,2]
[421763687,1778119840000,-500.0,0.00016438,2]
[421763694,1778119840000,-500.0,0.00016438,2]
[421763690,1778119840000,-500.0,0.00016438,2]
[421763689,1778119840000,-339.23784331,0.00016438,2]
[421763693,1778119840000,-500.0,0.00016438,2]
[421763691,1778119840000,-150.0,0.00016438,2]
[421763688,1778119840000,-501.97983143,0.00016438,2]
[421763692,1778119840000,-501.44919593,0.00016438,2]
[421763696,1778119840000,-500.0,0.00016438,2]
[421763699,1778119840000,-565.7993702,0.00016438,2]
[421763695,1778119840000,-500.0,0.00016438,2]
[421763698,1778119840000,-500.0,0.00016438,2]
[421763697,1778119840000,-500.0,0.00016438,2]
[421763700,1778119840000,-500.37628274,0.00016438,2]
[421763702,1778119840000,-500.0,0.00016438,2]
[421763726,1778119840000,-502.04883077,0.00016986,2]
[421763786,1778119840000,-39814.0733141,0.00019,2]
[421763733,1778119840000,-475679.33639273,0.00017,2]
[421763763,1778119840000,-500.0,0.00018433,2]
[421763761,1778119840000,-500.0,0.00018433,2]
[421763773,1778119840000,-500.0,0.00018433,2]
[421763776,1778119840000,-200.82325608,0.00018433,2]
[421763765,1778119840000,-500.0,0.00018433,2]
[421763775,1778119840000,-500.0,0.00018433,2]
[421763766,1778119840000,-500.0,0.00018433,2]
[421763768,1778119840000,-500.0,0.00018433,2]
[421763769,1778119840000,-150.40022105,0.00018433,2]
[421763771,1778119840000,-500.0,0.00018433,2]
[421763778,1778119840000,-357.88059888,0.000185,2]
[421763774,1778119840000,-500.0,0.00018433,2]
[421763788,1778119840000,-556.999474,0.00019,2]
[421763779,1778119840000,-357.88059888,0.000187,2]
[421763781,1778119840000,-300.0,0.00018799,2]
[421763787,1778119840000,-556.999474,0.00019,2]
[421763785,1778119840000,-3979.53024941,0.00019,2]
[421763783,1778119840000,-2000.0,0.00018902,2]
[421763782,1778119840000,-34869.776578,0.000188,2]
[421763784,1778119840000,-305.92,0.00018948,2]
[421763789,1778119840000,-556.999474,0.00019,2]
[421763791,1778119840000,-151.0,0.00019178,2]
[421763790,1778119840000,-556.999474,0.00019,2]
[421763730,1778119840000,-1005.58876863,0.00016986,2]
[421763777,1778119840000,-189.20905721,0.00018473,2]
[421763772,1778119840000,-500.0,0.00018433,2]
[421763780,1778119840000,-214.54,0.0001872,2]
[421763757,1778119840000,-300.0,0.00018432,2]
[421763735,1778119840000,-2000.0,0.00017327,2]
[421763755,1778119840000,-270.47937099,0.00018373,2]
[421763734,1778119840000,-367.44543231,0.0001726,2]
[421763732,1778119840000,-300.0,0.00016999,2]
[421763745,1778119840000,-214.63993676,0.00017776,2]
[421763739,1778119840000,-150.0,0.00017514,2]
[421763738,1778119840000,-150.0,0.00017514,2]
[421763744,1778119840000,-207.9261601,0.00017776,2]
[421763740,1778119840000,-150.0,0.00017514,2]
[421763742,1778119840000,-1927.27,0.000176,2]
[421763741,1778119840000,-4609.0,0.00017568,2]
[421763737,1778119840000,-501.03097108,0.00017393,2]
[421763736,1778119840000,-305.92,0.00017369,2]
[421763746,1778119840000,-160.0,0.00017776,2]
[421763743,1778119840000,-157.37659745,0.00017747,2]
[421763753,1778119840000,-5000.0,0.00018333,2]
[421763756,1778119840000,-357.88059888,0.000184,2]
[421763750,1778119840000,-9000.53,0.00018159,2]
[421763751,1778119840000,-357.88059888,0.000182,2]
[421763754,1778119840000,-89415.24,0.00018356,2]
[421763748,1778119840000,-350.0,0.00018,2]
[421763760,1778119840000,-207.03866521,0.00018433,2]
[421763749,1778119840000,-357.88059888,0.00018,2]
[421763747,1778119840000,-200.0,0.000179,6]
[421763752,1778119840000,-5642.77808667,0.00018333,2]
[421763758,1778119840000,-300.0,0.00018432,2]
[421763836,1778119841000,-210.0,0.0002,2]
[421763848,1778119841000,-9000.53,0.00020899,2]
[421763841,1778119841000,-377.0,0.0002,2]
[421763851,1778119841000,-171.0,0.00021,2]
[421763840,1778119841000,-157.0,0.0002,2]
[421763842,1778119841000,-1323.0,0.0002,2]
[421763843,1778119841000,-1000.0,0.0002,7]
[421763846,1778119841000,-38000.0,0.000205,2]
[421763847,1778119841000,-2758.87,0.00020548,2]
[421763852,1778119841000,-154.0,0.00021,2]
[421763849,1778119841000,-203.55,0.00020918,2]
[421763845,1778119841000,-157.37659745,0.00020068,2]
[421763850,1778119841000,-8000.47,0.00020951,2]
[421763853,1778119841000,-155.0,0.00021,2]
[421763862,1778119841000,-227.0,0.00021523,2]
[421763860,1778119841000,-1956.57,0.00021273,2]
[421763861,1778119841000,-589.87225422,0.00021426,2]
[421763838,1778119841000,-150.0,0.0002,2]
[421763863,1778119841000,-293.0,0.00021729,2]
[421763844,1778119841000,-925.0,0.0002,2]
[421763835,1778119841000,-158.0,0.0002,13]
[421763823,1778119841000,-151.0,0.0001995,2]
[421763834,1778119841000,-1487.69636694,0.0002,5]
[421763864,1778119841000,-347.0,0.00021914,2]
[421763817,1778119841000,-151.0,0.0001995,2]
[421763815,1778119841000,-4987.2186905,0.000199,3]
[421763821,1778119841000,-151.0,0.0001995,2]
[421763816,1778119841000,-277051.39518519,0.0001995,15]
[421763826,1778119841000,-151.0,0.0001995,2]
[421763820,1778119841000,-151.0,0.0001995,2]
[421763822,1778119841000,-151.0,0.0001995,2]
[421763819,1778119841000,-151.0,0.0001995,2]
[421763827,1778119841000,-151.0,0.0001995,2]
[421763824,1778119841000,-151.0,0.0001995,2]
[421763825,1778119841000,-151.0,0.0001995,2]
[421763829,1778119841000,-171.0,0.0002,2]
[421763828,1778119841000,-151.0,0.0001995,2]
[421763839,1778119841000,-150.0,0.0002,10]
[421763830,1778119841000,-154.0,0.0002,2]
[421763832,1778119841000,-400.0,0.0002,2]
[421763831,1778119841000,-155.0,0.0002,2]
[421763837,1778119841000,-7054.66619753,0.0002,2]
[421763833,1778119841000,-798.0,0.0002,2]
[421763855,1778119841000,-210.0,0.00021,2]
[421763886,1778119841000,-798.0,0.00023,2]
[421763857,1778119841000,-377.0,0.00021,2]
[421763879,1778119841000,-268.01,0.000223,14]
[421763887,1778119841000,-4748.86565165,0.00023,2]
[421763883,1778119841000,-214.54,0.00022691,2]
[421763890,1778119841000,-157.0,0.00023,2]
[421763889,1778119841000,-305097.97762788,0.00023,2]
[421763891,1778119841000,-377.0,0.00023,2]
[421763893,1778119841000,-3537.0,0.00023267,2]
[421763892,1778119841000,-4617.1907908,0.00023079,2]
[421763896,1778119841000,-3626.0,0.00023467,2]
[421763894,1778119841000,-3878.0,0.00023383,2]
[421763897,1778119841000,-6044.0,0.00023467,2]
[421763895,1778119841000,-1155.0,0.00023467,2]
[421763902,1778119841000,-150.127,0.0002375,2]
[421763900,1778119841000,-275.0,0.0002375,2]
[421763899,1778119841000,-150.0,0.0002375,2]
[421763901,1778119841000,-174.093,0.0002375,2]
[421763898,1778119841000,-200.0,0.0002375,2]
[421763904,1778119841000,-150.151,0.0002375,2]
[421763903,1778119841000,-150.0,0.0002375,2]
[421763884,1778119841000,-171.0,0.00023,2]
[421763854,1778119841000,-798.0,0.00021,2]
[421763885,1778119841000,-155.0,0.00023,2]
[421763881,1778119841000,-157.37659747,0.00022388,2]
[421763856,1778119841000,-157.0,0.00021,2]
[421763859,1778119841000,-1230.98,0.00021273,2]
[421763858,1778119841000,-9035.0,0.00021257,2]
[421763869,1778119841000,-171.0,0.00022,2]
[421763870,1778119841000,-156.03110557,0.00022,2]
[421763865,1778119841000,-5000.0,0.00021918,2]
[421763872,1778119841000,-450.0,0.00022,2]
[421763874,1778119841000,-106059.64931784,0.00022,4]
[421763866,1778119841000,-1002.79,0.00021918,2]
[421763878,1778119841000,-8204.55440281,0.00022234,2]
[421763868,1778119841000,-270.47937098,0.00021961,2]
[421763876,1778119841000,-157.0,0.00022,2]
[421763875,1778119841000,-210.0,0.00022,2]
[421763867,1778119841000,-1172.25,0.00021918,5]
[421763873,1778119841000,-798.0,0.00022,2]
[421763877,1778119841000,-377.0,0.00022,2]
[421763871,1778119841000,-155.0,0.00022,2]
[421763882,1778119841000,-207.61,0.00022691,2]
[421763880,1778119841000,-8000.47,0.00022321,2]
[421763888,1778119841000,-210.0,0.00023,2]
[421763818,1778119841000,-151.0,0.0001995,2]
[421763806,1778119841000,-500.0,0.00019178,2]
[421763808,1778119841000,-450.51477892,0.00019178,2]
[421763792,1778119841000,-500.0,0.00019178,2]
[421763801,1778119841000,-500.0,0.00019178,2]
[421763793,1778119841000,-500.0,0.00019178,2]
[421763794,1778119841000,-500.0,0.00019178,2]
[421763797,1778119841000,-500.0,0.00019178,2]
[421763799,1778119841000,-500.0,0.00019178,2]
[421763800,1778119841000,-278.198473,0.00019178,2]
[421763796,1778119841000,-500.0,0.00019178,2]
[421763795,1778119841000,-500.0,0.00019178,2]
[421763798,1778119841000,-500.0,0.00019178,2]
[421763810,1778119841000,-278.198473,0.00019178,2]
[421763802,1778119841000,-500.0,0.00019178,2]
[421763814,1778119841000,-8000.47,0.00019581,2]
[421763803,1778119841000,-500.0,0.00019178,2]
[421763805,1778119841000,-500.0,0.00019178,2]
[421763811,1778119841000,-278.198473,0.00019178,2]
[421763807,1778119841000,-500.0,0.00019178,2]
[421763812,1778119841000,-6453.0,0.00019325,2]
[421763804,1778119841000,-500.0,0.00019178,2]
[421763809,1778119841000,-278.198473,0.00019178,2]
[421763813,1778119841000,-9000.53,0.00019529,2]
[421763947,1778119842000,-468.1,0.00025234,30]
[421763943,1778119842000,-624.85380337,0.00025,5]
[421763941,1778119842000,-3078.65225433,0.00025,2]
[421763940,1778119842000,-617.87476287,0.00025,2]
[421763937,1778119842000,-1805.66331176,0.00025,2]
[421763932,1778119842000,-188.7362705,0.00025,2]
[421763942,1778119842000,-218.48052943,0.00025,2]
[421763939,1778119842000,-540.0,0.00025,2]
[421763948,1778119842000,-467.43426065,0.00025253,2]
[421763946,1778119842000,-358.08,0.00025234,30]
[421763933,1778119842000,-174.19259227,0.00025,2]
[421763949,1778119842000,-358.08,0.00025523,2]
[421763944,1778119842000,-385.94441982,0.00025,2]
[421763952,1778119842000,-5529.0,0.000256,3]
[421763950,1778119842000,-468.1,0.00025523,2]
[421763951,1778119842000,-270.47937098,0.00025549,2]
[421763953,1778119842000,-1230.98,0.00025786,2]
[421763936,1778119842000,-786.94563637,0.00025,60]
[421763954,1778119842000,-11828.19,0.00025786,2]
[421763961,1778119842000,-4574.61256297,0.00026,2]
[421763962,1778119842000,-218.94628932,0.00026,2]
[421763956,1778119842000,-358.08,0.00025811,7]
[421763955,1778119842000,-1956.57,0.00025786,2]
[421763958,1778119842000,-31174.5580646,0.0002589,5]
[421763960,1778119842000,-550.0,0.00026,2]
[421763959,1778119842000,-607.72626278,0.0002599,2]
[421763945,1778119842000,-254.65712492,0.00025205,2]
[421763935,1778119842000,-209.90641887,0.00025,2]
[421763928,1778119842000,-3134.0,0.000249,2]
[421763930,1778119842000,-468.1,0.00024946,7]
[421763907,1778119842000,-171.0,0.00024,2]
[421763912,1778119842000,-210.0,0.00024,2]
[421763911,1778119842000,-1252.31853848,0.00024,2]
[421763905,1778119842000,-150.0,0.0002375,2]
[421763906,1778119842000,-193.81,0.00024,2]
[421763908,1778119842000,-155.0,0.00024,2]
[421763914,1778119842000,-377.0,0.00024,2]
[421763913,1778119842000,-172.27753994,0.00024,2]
[421763909,1778119842000,-500.0,0.00024,2]
[421763910,1778119842000,-798.0,0.00024,2]
[421763916,1778119842000,-150.0,0.00024428,2]
[421763915,1778119842000,-11828.19,0.00024174,2]
[421763927,1778119842000,-468.1,0.00024658,2]
[421763917,1778119842000,-150.0,0.00024428,2]
[421763923,1778119842000,-1000.0,0.00024658,2]
[421763925,1778119842000,-184.615,0.00024658,2]
[421763918,1778119842000,-150.0,0.00024428,2]
[421763921,1778119842000,-512.22577348,0.00024657,2]
[421763920,1778119842000,-298.0,0.00024428,2]
[421763924,1778119842000,-261.96,0.00024658,2]
[421763922,1778119842000,-150.0,0.00024658,2]
[421763926,1778119842000,-358.08,0.00024658,2]
[421763929,1778119842000,-358.08,0.00024946,7]
[421763957,1778119842000,-468.1,0.00025811,7]
[421763931,1778119842000,-193.84,0.00025,2]
[421763934,1778119842000,-1126.89953138,0.00025,2]
[421763919,1778119842000,-150.0,0.00024428,2]
[421763974,1778119842000,-250.0,0.00026389,2]
[421763938,1778119842000,-804.61764916,0.00025,2]
[421763963,1778119842000,-214.63993676,0.00026,3]
[421763998,1778119842000,-1692.612679,0.00027,2]
[421763999,1778119842000,-257.90861161,0.0002709,2]
[421764004,1778119842000,-468.1,0.00027253,2]
[421764013,1778119842000,-633.31065,0.00027397,2]
[421764014,1778119842000,-633.31065,0.00027397,2]
[421764005,1778119842000,-226.40285066,0.000273,30]
[421764003,1778119842000,-358.08,0.00027253,2]
[421764008,1778119842000,-1500.0,0.00027397,2]